[Event "Titled Tuesday Blitz June 21 Early 2022"]
[White "Borgaonkar Akshay"]
[Black "Mangialardo, Tiago Carvalho"]
[WhiteFideId "25639110"]
[BlackFideId "2130718"]
[WhiteElo "1660"]
[BlackElo "2099"]
[Result "1-0"]
[Round "04"]
[TimeControl "180+1"]
[Date "2022.06.21"]
[WhiteClock "0:00:24"]
[BlackClock "0:00:01"]

1. e4 {[%clk 0:02:59]}  e5 {[%clk 0:02:57]} 2. Nf3 {[%clk 0:02:58]}  Nc6 {[%clk 0:02:56]} 3. Bb5 {[%clk 0:02:58]}  a6 {[%clk 0:02:56]} 4. Ba4 {[%clk 0:02:57]}  Nf6 {[%clk 0:02:56]} 5. d3 {[%clk 0:02:57]}  Be7 {[%clk 0:02:57]} 6. c4 {[%clk 0:02:55]}  d6 {[%clk 0:02:56]} 7. Nc3 {[%clk 0:02:55]}  O-O {[%clk 0:02:56]} 8. h3 {[%clk 0:02:54]}  Nd4 {[%clk 0:02:48]} 9. Nxd4 {[%clk 0:02:51]}  exd4 {[%clk 0:02:49]} 10. Ne2 {[%clk 0:02:51]}  c5 {[%clk 0:02:48]} 11. O-O {[%clk 0:02:50]}  Bd7 {[%clk 0:02:48]} 12. Bxd7 {[%clk 0:02:42]}  Qxd7 {[%clk 0:02:49]} 13. f4 {[%clk 0:02:41]}  b5 {[%clk 0:02:34]} 14. b3 {[%clk 0:02:40]}  Qc7 {[%clk 0:02:26]} 15. Ng3 {[%clk 0:02:37]}  Bd8 {[%clk 0:01:50]} 16. Nf5 {[%clk 0:02:32]}  g6 {[%clk 0:01:38]} 17. Nh6+ {[%clk 0:02:32]}  Kg7 {[%clk 0:01:39]} 18. f5 {[%clk 0:02:33]}  Ng8 {[%clk 0:01:08]} 19. Qd2 {[%clk 0:02:25]}  g5 {[%clk 0:00:49]} 20. Nxg8 {[%clk 0:02:21]}  Rxg8 {[%clk 0:00:50]} 21. Qf2 {[%clk 0:02:17]}  Bf6 {[%clk 0:00:48]} 22. Qf3 {[%clk 0:02:00]}  Qe7 {[%clk 0:00:38]} 23. Qh5 {[%clk 0:01:59]}  h6 {[%clk 0:00:36]} 24. Kh1 {[%clk 0:01:56]}  Qe5 {[%clk 0:00:32]} 25. Qg4 {[%clk 0:01:51]}  Kf8 {[%clk 0:00:29]} 26. Qh5 {[%clk 0:01:49]}  Rh8 {[%clk 0:00:23]} 27. Bd2 {[%clk 0:01:37]}  Ke7 {[%clk 0:00:23]} 28. Qf3 {[%clk 0:01:32]}  Kd7 {[%clk 0:00:22]} 29. g3 {[%clk 0:01:30]}  h5 {[%clk 0:00:19]} 30. Qf2 {[%clk 0:01:28]}  Rag8 {[%clk 0:00:04]} 31. Kg2 {[%clk 0:01:27]}  g4 {[%clk 0:00:04]} 32. h4 {[%clk 0:01:27]}  Ra8 {[%clk 0:00:03]} 33. Bf4 {[%clk 0:01:26]}  Qe7 {[%clk 0:00:03]} 34. Rfe1 {[%clk 0:01:25]}  Be5 {[%clk 0:00:03]} 35. Bxe5 {[%clk 0:01:23]}  Qxe5 {[%clk 0:00:02]} 36. Qf4 {[%clk 0:01:23]}  f6 {[%clk 0:00:02]} 37. Qxe5 {[%clk 0:01:15]}  dxe5 {[%clk 0:00:02]} 38. Rec1 {[%clk 0:01:13]}  Kc6 {[%clk 0:00:02]} 39. cxb5+ {[%clk 0:01:12]}  axb5 {[%clk 0:00:03]} 40. b4 {[%clk 0:01:12]}  Kb6 {[%clk 0:00:02]} 41. Rxc5 {[%clk 0:01:09]}  Rhc8 {[%clk 0:00:02]} 42. Rxc8 {[%clk 0:01:07]}  Rxc8 {[%clk 0:00:03]} 43. Rf1 {[%clk 0:00:57]}  Rc2+ {[%clk 0:00:03]} 44. Rf2 {[%clk 0:00:58]}  Rc3 {[%clk 0:00:02]} 45. Rd2 {[%clk 0:00:58]}  Rc1 {[%clk 0:00:02]} 46. Kf2 {[%clk 0:00:58]}  Rb1 {[%clk 0:00:02]} 47. a3 {[%clk 0:00:49]}  Ra1 {[%clk 0:00:02]} 48. Rc2 {[%clk 0:00:47]}  Rxa3 {[%clk 0:00:02]} 49. Rc8 {[%clk 0:00:48]}  Rxd3 {[%clk 0:00:03]} 50. Rf8 {[%clk 0:00:47]}  Rd2+ {[%clk 0:00:02]} 51. Ke1 {[%clk 0:00:47]}  Rg2 {[%clk 0:00:02]} 52. Rxf6+ {[%clk 0:00:47]}  Kb7 {[%clk 0:00:02]} 53. Rf7+ {[%clk 0:00:48]}  Kb6 {[%clk 0:00:02]} 54. Re7 {[%clk 0:00:44]}  Rxg3 {[%clk 0:00:02]} 55. Rxe5 {[%clk 0:00:45]}  Kc6 {[%clk 0:00:01]} 56. Re6+ {[%clk 0:00:45]}  Kd7 {[%clk 0:00:01]} 57. e5 {[%clk 0:00:41]}  Rf3 {[%clk 0:00:01]} 58. Rd6+ {[%clk 0:00:41]}  Ke7 {[%clk 0:00:01]} 59. f6+ {[%clk 0:00:41]}  Ke8 {[%clk 0:00:01]} 60. Rxd4 {[%clk 0:00:32]}  Re3+ {[%clk 0:00:02]} 61. Kf2 {[%clk 0:00:32]}  Rxe5 {[%clk 0:00:02]} 62. Rd6 {[%clk 0:00:30]}  Kf7 {[%clk 0:00:03]} 63. Rb6 {[%clk 0:00:26]}  Rf5+ {[%clk 0:00:03]} 64. Ke3 {[%clk 0:00:27]}  Kg6 {[%clk 0:00:03]} 65. Ke4 {[%clk 0:00:25]}  Rf3 {[%clk 0:00:01]} 66. Rxb5 {[%clk 0:00:24]}  Rxf6 {[%clk 0:00:01]} 67. Rg5+ {[%clk 0:00:25]}  Kh6 {[%clk 0:00:01]} 68. b5 {[%clk 0:00:25]}  Rf7 {[%clk 0:00:01]} 69. Kd5 {[%clk 0:00:24]} 1-0


[Site "https://www.chess.com"]

[Event "Titled Tuesday Blitz June 21 Early 2022"]
[White "Boyer, Mahel"]
[Black "Sadykov, Ramil"]
[WhiteFideId "45102422"]
[BlackFideId "24113590"]
[WhiteElo "2400"]
[BlackElo "2226"]
[Result "1-0"]
[Round "04"]
[TimeControl "180+1"]
[Date "2022.06.21"]
[WhiteClock "0:00:13"]
[BlackClock "0:00:02"]

1. e4 {[%clk 0:03:00]}  c5 {[%clk 0:02:59]} 2. Nf3 {[%clk 0:02:56]}  Nc6 {[%clk 0:02:58]} 3. b4 {[%clk 0:02:54]}  Nxb4 {[%clk 0:02:52]} 4. c3 {[%clk 0:02:52]}  Nc6 {[%clk 0:02:52]} 5. d4 {[%clk 0:02:52]}  cxd4 {[%clk 0:02:52]} 6. cxd4 {[%clk 0:02:53]}  d5 {[%clk 0:02:46]} 7. exd5 {[%clk 0:02:54]}  Qxd5 {[%clk 0:02:45]} 8. Nc3 {[%clk 0:02:55]}  Qa5 {[%clk 0:02:39]} 9. d5 {[%clk 0:02:56]}  Qxc3+ {[%clk 0:02:37]} 10. Bd2 {[%clk 0:02:56]}  Qc5 {[%clk 0:02:27]} 11. dxc6 {[%clk 0:02:56]}  bxc6 {[%clk 0:02:05]} 12. Rc1 {[%clk 0:02:53]}  Qd6 {[%clk 0:02:05]} 13. Bc4 {[%clk 0:02:51]}  Nf6 {[%clk 0:02:01]} 14. O-O {[%clk 0:02:49]}  e6 {[%clk 0:01:57]} 15. Qa4 {[%clk 0:02:41]}  Bd7 {[%clk 0:01:46]} 16. Rfd1 {[%clk 0:02:06]}  Be7 {[%clk 0:01:42]} 17. Bh6 {[%clk 0:02:04]}  Qc7 {[%clk 0:01:36]} 18. Bxg7 {[%clk 0:02:01]}  Rg8 {[%clk 0:01:35]} 19. Bxf6 {[%clk 0:01:51]}  Bxf6 {[%clk 0:01:34]} 20. Bd3 {[%clk 0:01:52]}  Rb8 {[%clk 0:01:06]} 21. Bxh7 {[%clk 0:01:49]}  Rg7 {[%clk 0:01:05]} 22. Be4 {[%clk 0:01:50]}  Rb6 {[%clk 0:00:56]} 23. h4 {[%clk 0:00:32]}  c5 {[%clk 0:00:22]} 24. Qa5 {[%clk 0:00:26]}  c4 {[%clk 0:00:06]} 25. h5 {[%clk 0:00:15]}  c3 {[%clk 0:00:06]} 26. h6 {[%clk 0:00:15]}  Rg4 {[%clk 0:00:02]} 27. Qh5 {[%clk 0:00:14]}  Rxe4 {[%clk 0:00:02]} 28. h7 {[%clk 0:00:14]}  Ke7 {[%clk 0:00:02]} 29. h8=Q {[%clk 0:00:14]}  Bxh8 {[%clk 0:00:03]} 30. Qxh8 {[%clk 0:00:15]}  c2 {[%clk 0:00:02]} 31. Rf1 {[%clk 0:00:13]} 1-0


[Site "https://www.chess.com"]

[Event "Titled Tuesday Blitz June 21 Early 2022"]
[White "Ciuffoletti, Paolo"]
[Black "Krallis, Christos"]
[WhiteFideId "807630"]
[BlackFideId "4298896"]
[WhiteElo "2143"]
[BlackElo "2234"]
[Result "0-1"]
[Round "04"]
[TimeControl "180+1"]
[Date "2022.06.21"]
[WhiteClock "0:00:01"]
[BlackClock "0:00:22"]

1. e4 {[%clk 0:03:00]}  e5 {[%clk 0:02:52]} 2. Nf3 {[%clk 0:02:59]}  Nf6 {[%clk 0:02:53]} 3. Bc4 {[%clk 0:02:58]}  Nc6 {[%clk 0:02:43]} 4. d4 {[%clk 0:02:57]}  exd4 {[%clk 0:02:35]} 5. Ng5 {[%clk 0:02:56]}  Ne5 {[%clk 0:02:24]} 6. Bb3 {[%clk 0:02:55]}  h6 {[%clk 0:02:22]} 7. f4 {[%clk 0:02:55]}  hxg5 {[%clk 0:02:11]} 8. fxe5 {[%clk 0:02:55]}  Nxe4 {[%clk 0:02:10]} 9. Qxd4 {[%clk 0:02:55]}  Nc5 {[%clk 0:02:07]} 10. Be3 {[%clk 0:02:54]}  Ne6 {[%clk 0:02:07]} 11. Bxe6 {[%clk 0:02:37]}  dxe6 {[%clk 0:02:07]} 12. Qxd8+ {[%clk 0:02:30]}  Kxd8 {[%clk 0:02:07]} 13. Bxg5+ {[%clk 0:02:30]}  Be7 {[%clk 0:02:08]} 14. Bf4 {[%clk 0:02:25]}  Bd7 {[%clk 0:02:03]} 15. Nc3 {[%clk 0:02:24]}  Bc6 {[%clk 0:02:02]} 16. O-O-O+ {[%clk 0:02:15]}  Ke8 {[%clk 0:02:01]} 17. Rd2 {[%clk 0:01:46]}  g5 {[%clk 0:01:44]} 18. Bg3 {[%clk 0:01:42]}  g4 {[%clk 0:01:43]} 19. Re1 {[%clk 0:01:33]}  Bg5 {[%clk 0:01:41]} 20. Ne4 {[%clk 0:01:27]}  Bxe4 {[%clk 0:01:40]} 21. Rxe4 {[%clk 0:01:26]}  Rd8 {[%clk 0:01:38]} 22. Bf4 {[%clk 0:01:24]}  Rxd2 {[%clk 0:01:23]} 23. Kxd2 {[%clk 0:01:12]}  Bxf4+ {[%clk 0:01:19]} 24. Rxf4 {[%clk 0:01:12]}  Rxh2 {[%clk 0:01:20]} 25. Rxg4 {[%clk 0:01:12]}  Rh5 {[%clk 0:01:21]} 26. Re4 {[%clk 0:01:02]}  Rg5 {[%clk 0:01:21]} 27. g4 {[%clk 0:01:01]}  Rg7 {[%clk 0:01:20]} 28. Ke3 {[%clk 0:01:00]}  Rh7 {[%clk 0:01:19]} 29. Kf3 {[%clk 0:00:57]}  Rh3+ {[%clk 0:01:18]} 30. Kg2 {[%clk 0:00:54]}  Rh7 {[%clk 0:01:16]} 31. a4 {[%clk 0:00:47]}  a5 {[%clk 0:01:11]} 32. Kg3 {[%clk 0:00:43]}  Rh1 {[%clk 0:01:10]} 33. Rc4 {[%clk 0:00:44]}  c6 {[%clk 0:01:10]} 34. Rc5 {[%clk 0:00:43]}  Rb1 {[%clk 0:01:04]} 35. b3 {[%clk 0:00:43]}  Rc1 {[%clk 0:01:04]} 36. Kf4 {[%clk 0:00:41]}  Kd7 {[%clk 0:01:01]} 37. Kg5 {[%clk 0:00:41]}  b6 {[%clk 0:01:00]} 38. Rc4 {[%clk 0:00:41]}  Rf1 {[%clk 0:00:58]} 39. Rf4 {[%clk 0:00:40]}  Re1 {[%clk 0:00:53]} 40. Rxf7+ {[%clk 0:00:39]}  Ke8 {[%clk 0:00:54]} 41. Rb7 {[%clk 0:00:36]}  Rxe5+ {[%clk 0:00:54]} 42. Kf4 {[%clk 0:00:36]}  Re2 {[%clk 0:00:52]} 43. c4 {[%clk 0:00:34]}  Rf2+ {[%clk 0:00:46]} 44. Ke3 {[%clk 0:00:33]}  Rf1 {[%clk 0:00:39]} 45. Rxb6 {[%clk 0:00:32]}  Kd7 {[%clk 0:00:40]} 46. c5 {[%clk 0:00:29]}  e5 {[%clk 0:00:39]} 47. Ke4 {[%clk 0:00:25]}  Re1+ {[%clk 0:00:32]} 48. Kf5 {[%clk 0:00:25]}  e4 {[%clk 0:00:33]} 49. Rb7+ {[%clk 0:00:25]}  Kd8 {[%clk 0:00:31]} 50. Ke6 {[%clk 0:00:15]}  e3 {[%clk 0:00:29]} 51. Rd7+ {[%clk 0:00:14]}  Kc8 {[%clk 0:00:27]} 52. Rd3 {[%clk 0:00:14]}  e2 {[%clk 0:00:24]} 53. Rd2 {[%clk 0:00:14]}  Kc7 {[%clk 0:00:21]} 54. g5 {[%clk 0:00:13]}  Rg1 {[%clk 0:00:21]} 55. Rxe2 {[%clk 0:00:13]}  Rxg5 {[%clk 0:00:21]} 56. Rc2 {[%clk 0:00:11]}  Rg3 {[%clk 0:00:22]} 57. Rf2 {[%clk 0:00:09]}  Re3+ {[%clk 0:00:22]} 58. Kf7 {[%clk 0:00:08]}  Rxb3 {[%clk 0:00:22]} 59. Re2 {[%clk 0:00:07]}  Rc3 {[%clk 0:00:19]} 60. Re7+ {[%clk 0:00:07]}  Kb8 {[%clk 0:00:20]} 61. Re5 {[%clk 0:00:07]}  Rc4 {[%clk 0:00:18]} 62. Ke7 {[%clk 0:00:07]}  Rd4 {[%clk 0:00:18]} 63. Re6 {[%clk 0:00:06]}  Kc7 {[%clk 0:00:18]} 64. Rd6 {[%clk 0:00:05]}  Re4+ {[%clk 0:00:19]} 65. Kf6 {[%clk 0:00:05]}  Rxa4 {[%clk 0:00:20]} 66. Ke7 {[%clk 0:00:04]}  Re4+ {[%clk 0:00:20]} 67. Kf6 {[%clk 0:00:04]}  Rc4 {[%clk 0:00:20]} 68. Re6 {[%clk 0:00:04]}  Rxc5 {[%clk 0:00:20]} 69. Re7+ {[%clk 0:00:04]}  Kb6 {[%clk 0:00:21]} 70. Re4 {[%clk 0:00:04]}  a4 {[%clk 0:00:22]} 71. Rxa4 {[%clk 0:00:04]}  Kb5 {[%clk 0:00:22]} 72. Ra2 {[%clk 0:00:04]}  Rd5 {[%clk 0:00:22]} 73. Ke6 {[%clk 0:00:04]}  Rd1 {[%clk 0:00:22]} 74. Rb2+ {[%clk 0:00:04]}  Ka4 {[%clk 0:00:22]} 75. Ra2+ {[%clk 0:00:04]}  Kb3 {[%clk 0:00:22]} 76. Ra6 {[%clk 0:00:04]}  c5 {[%clk 0:00:22]} 77. Rb6+ {[%clk 0:00:02]}  Kc3 {[%clk 0:00:22]} 78. Rc6 {[%clk 0:00:02]}  c4 {[%clk 0:00:23]} 79. Ke5 {[%clk 0:00:01]}  Kb3 {[%clk 0:00:23]} 80. Rb6+ {[%clk 0:00:01]}  Kc2 {[%clk 0:00:23]} 81. Ke4 {[%clk 0:00:02]}  Rd8 {[%clk 0:00:22]} 82. Ke3 {[%clk 0:00:02]}  c3 {[%clk 0:00:22]} 83. Ke2 {[%clk 0:00:01]}  Kc1 {[%clk 0:00:22]} 84. Ke1 {[%clk 0:00:01]}  c2 {[%clk 0:00:22]} 85. Rb5 {[%clk 0:00:01]}  Re8+ {[%clk 0:00:22]} 86. Kf2 {[%clk 0:00:01]}  Re4 {[%clk 0:00:22]} 0-1


[Site "https://www.chess.com"]

[Event "Titled Tuesday Blitz June 21 Early 2022"]
[White "Costachi, Mihnea"]
[Black "Hakobyan, Aram"]
[WhiteFideId "1217518"]
[BlackFideId "13306677"]
[WhiteElo "2476"]
[BlackElo "2557"]
[Result "1/2-1/2"]
[Round "04"]
[TimeControl "180+1"]
[Date "2022.06.21"]
[WhiteClock "0:00:49"]
[BlackClock "0:00:09"]

1. d4 {[%clk 0:03:00]}  Nf6 {[%clk 0:02:58]} 2. c4 {[%clk 0:03:01]}  e6 {[%clk 0:02:59]} 3. Nf3 {[%clk 0:03:01]}  b6 {[%clk 0:02:59]} 4. g3 {[%clk 0:03:01]}  Bb7 {[%clk 0:02:59]} 5. Bg2 {[%clk 0:03:01]}  g6 {[%clk 0:03:00]} 6. O-O {[%clk 0:03:01]}  Bg7 {[%clk 0:03:01]} 7. b3 {[%clk 0:03:02]}  O-O {[%clk 0:03:00]} 8. Bb2 {[%clk 0:03:02]}  a5 {[%clk 0:03:00]} 9. a3 {[%clk 0:03:01]}  d6 {[%clk 0:03:00]} 10. Nc3 {[%clk 0:03:01]}  Ne4 {[%clk 0:03:01]} 11. Nxe4 {[%clk 0:02:55]}  Bxe4 {[%clk 0:03:00]} 12. Bh3 {[%clk 0:02:53]}  Bxf3 {[%clk 0:02:52]} 13. exf3 {[%clk 0:02:53]}  c6 {[%clk 0:02:53]} 14. Qd2 {[%clk 0:02:47]}  d5 {[%clk 0:02:54]} 15. f4 {[%clk 0:02:36]}  a4 {[%clk 0:02:53]} 16. cxd5 {[%clk 0:02:35]}  cxd5 {[%clk 0:02:45]} 17. Bc3 {[%clk 0:02:25]}  Nc6 {[%clk 0:02:42]} 18. b4 {[%clk 0:02:18]}  Na7 {[%clk 0:02:42]} 19. Rfc1 {[%clk 0:02:18]}  Nb5 {[%clk 0:02:42]} 20. Bf1 {[%clk 0:02:18]}  Nd6 {[%clk 0:02:41]} 21. b5 {[%clk 0:02:16]}  Ne4 {[%clk 0:02:28]} 22. Qd1 {[%clk 0:02:14]}  Nxc3 {[%clk 0:02:26]} 23. Rxc3 {[%clk 0:02:14]}  Qf6 {[%clk 0:02:27]} 24. Rd3 {[%clk 0:02:06]}  Rfc8 {[%clk 0:02:26]} 25. Rc1 {[%clk 0:02:07]}  Rc4 {[%clk 0:02:17]} 26. Rxc4 {[%clk 0:01:53]}  dxc4 {[%clk 0:02:18]} 27. Rc3 {[%clk 0:01:54]}  Qxd4 {[%clk 0:02:18]} 28. Qxd4 {[%clk 0:01:54]}  Bxd4 {[%clk 0:02:19]} 29. Rxc4 {[%clk 0:01:55]}  Bc5 {[%clk 0:02:19]} 30. Bd3 {[%clk 0:01:45]}  Rd8 {[%clk 0:02:17]} 31. Be2 {[%clk 0:01:38]}  Rd2 {[%clk 0:01:58]} 32. Kf1 {[%clk 0:01:38]}  Bxa3 {[%clk 0:01:58]} 33. Rxa4 {[%clk 0:01:37]}  Bc5 {[%clk 0:01:59]} 34. h4 {[%clk 0:01:26]}  h5 {[%clk 0:01:58]} 35. Ra1 {[%clk 0:01:22]}  Rb2 {[%clk 0:01:58]} 36. Rd1 {[%clk 0:01:22]}  Kf8 {[%clk 0:01:58]} 37. Rd7 {[%clk 0:01:20]}  Kg7 {[%clk 0:01:58]} 38. Rd8 {[%clk 0:01:19]}  Kf6 {[%clk 0:01:59]} 39. Rd1 {[%clk 0:01:19]}  Ke7 {[%clk 0:01:59]} 40. Ra1 {[%clk 0:01:16]}  Bd4 {[%clk 0:01:57]} 41. Ra7+ {[%clk 0:01:16]}  Kf6 {[%clk 0:01:57]} 42. Rd7 {[%clk 0:01:17]}  Bc5 {[%clk 0:01:57]} 43. Rc7 {[%clk 0:01:17]}  Rd2 {[%clk 0:01:53]} 44. Rb7 {[%clk 0:01:17]}  Ra2 {[%clk 0:01:51]} 45. Rc7 {[%clk 0:01:17]}  Rb2 {[%clk 0:01:51]} 46. Rb7 {[%clk 0:01:17]}  Kg7 {[%clk 0:01:47]} 47. Rc7 {[%clk 0:01:17]}  Ra2 {[%clk 0:01:43]} 48. Rb7 {[%clk 0:01:17]}  Kf8 {[%clk 0:01:44]} 49. Rc7 {[%clk 0:01:16]}  Ke8 {[%clk 0:01:44]} 50. Rb7 {[%clk 0:01:15]}  Rc2 {[%clk 0:01:41]} 51. Rc7 {[%clk 0:01:15]}  Rc3 {[%clk 0:01:10]} 52. Ra7 {[%clk 0:01:11]}  Bd6 {[%clk 0:01:02]} 53. Rb7 {[%clk 0:01:10]}  Bc7 {[%clk 0:00:58]} 54. Ra7 {[%clk 0:01:09]}  Kd8 {[%clk 0:00:58]} 55. Kg2 {[%clk 0:01:09]}  Rb3 {[%clk 0:00:49]} 56. Bc4 {[%clk 0:01:07]}  Rb4 {[%clk 0:00:47]} 57. Be2 {[%clk 0:01:06]}  Rb2 {[%clk 0:00:47]} 58. Bd3 {[%clk 0:01:05]}  Kd7 {[%clk 0:00:37]} 59. Kf3 {[%clk 0:01:00]}  Kd6 {[%clk 0:00:37]} 60. Kg2 {[%clk 0:00:58]}  Rb3 {[%clk 0:00:34]} 61. Bc4 {[%clk 0:00:58]}  Rc3 {[%clk 0:00:31]} 62. Be2 {[%clk 0:00:58]}  Ke7 {[%clk 0:00:22]} 63. Bf3 {[%clk 0:00:58]}  Rc5 {[%clk 0:00:20]} 64. Bc6 {[%clk 0:00:57]}  Kd6 {[%clk 0:00:21]} 65. Ra2 {[%clk 0:00:56]}  Ke7 {[%clk 0:00:19]} 66. Rd2 {[%clk 0:00:56]}  Bd6 {[%clk 0:00:18]} 67. Ra2 {[%clk 0:00:57]}  Kf6 {[%clk 0:00:15]} 68. Ra7 {[%clk 0:00:56]}  Rc2 {[%clk 0:00:13]} 69. Be8 {[%clk 0:00:56]}  Rc7 {[%clk 0:00:11]} 70. Ra6 {[%clk 0:00:55]}  Bc5 {[%clk 0:00:11]} 71. Bc6 {[%clk 0:00:54]}  Re7 {[%clk 0:00:11]} 72. Ra4 {[%clk 0:00:52]}  Kg7 {[%clk 0:00:11]} 73. Re4 {[%clk 0:00:49]}  Ra7 {[%clk 0:00:11]} 74. Re2 {[%clk 0:00:50]}  Ra5 {[%clk 0:00:10]} 75. Rd2 {[%clk 0:00:50]}  Kf6 {[%clk 0:00:10]} 76. Be8 {[%clk 0:00:50]}  Ke7 {[%clk 0:00:10]} 77. Bc6 {[%clk 0:00:51]}  Ra3 {[%clk 0:00:10]} 78. Rd7+ {[%clk 0:00:49]}  Kf6 {[%clk 0:00:11]} 79. Rd2 {[%clk 0:00:50]}  Rb3 {[%clk 0:00:09]} 80. Re2 {[%clk 0:00:50]}  Rb4 {[%clk 0:00:09]} 81. Rd2 {[%clk 0:00:50]}  Rb1 {[%clk 0:00:09]} 82. Rc2 {[%clk 0:00:50]}  Rd1 {[%clk 0:00:09]} 83. Ra2 {[%clk 0:00:49]}  Rc1 {[%clk 0:00:09]} 84. Kf3 {[%clk 0:00:49]}  Rc3+ {[%clk 0:00:09]} 1/2-1/2


[Site "https://www.chess.com"]

[Event "Titled Tuesday Blitz June 21 Early 2022"]
[White "Cramling Bellon, Anna"]
[Black "Shton, Roman"]
[WhiteFideId "32009232"]
[BlackFideId "14137461"]
[WhiteElo "1905"]
[BlackElo "2013"]
[Result "1/2-1/2"]
[Round "04"]
[TimeControl "180+1"]
[Date "2022.06.21"]
[WhiteClock "0:00:07"]
[BlackClock "0:00:47"]

1. d4 {[%clk 0:03:00]}  Nf6 {[%clk 0:02:59]} 2. c4 {[%clk 0:03:01]}  e6 {[%clk 0:02:59]} 3. Nc3 {[%clk 0:03:00]}  Bb4 {[%clk 0:02:59]} 4. Qc2 {[%clk 0:02:57]}  O-O {[%clk 0:02:58]} 5. a3 {[%clk 0:02:54]}  Bxc3+ {[%clk 0:02:58]} 6. Qxc3 {[%clk 0:02:53]}  d5 {[%clk 0:02:59]} 7. Bg5 {[%clk 0:02:48]}  dxc4 {[%clk 0:02:59]} 8. Qxc4 {[%clk 0:02:48]}  b6 {[%clk 0:02:59]} 9. Qc2 {[%clk 0:02:40]}  Qxd4 {[%clk 0:02:57]} 10. Nf3 {[%clk 0:02:38]}  Qe4 {[%clk 0:02:52]} 11. Qxc7 {[%clk 0:02:33]}  Ba6 {[%clk 0:02:45]} 12. Qf4 {[%clk 0:01:57]}  Nc6 {[%clk 0:02:39]} 13. Qxe4 {[%clk 0:01:50]}  Nxe4 {[%clk 0:02:40]} 14. Bf4 {[%clk 0:01:50]}  Na5 {[%clk 0:02:34]} 15. e3 {[%clk 0:01:38]}  Bxf1 {[%clk 0:02:33]} 16. Kxf1 {[%clk 0:01:32]}  Rfd8 {[%clk 0:02:30]} 17. Ke2 {[%clk 0:01:29]}  Rac8 {[%clk 0:02:26]} 18. Rac1 {[%clk 0:01:28]}  Nb3 {[%clk 0:02:26]} 19. Rxc8 {[%clk 0:01:26]}  Rxc8 {[%clk 0:02:27]} 20. Rd1 {[%clk 0:01:03]}  f6 {[%clk 0:02:22]} 21. Bg3 {[%clk 0:00:53]}  Nxg3+ {[%clk 0:02:02]} 22. hxg3 {[%clk 0:00:52]}  Rc2+ {[%clk 0:02:02]} 23. Ke1 {[%clk 0:00:51]}  Rxb2 {[%clk 0:02:02]} 24. Rd8+ {[%clk 0:00:49]}  Kf7 {[%clk 0:02:01]} 25. Rd7+ {[%clk 0:00:50]}  Kg6 {[%clk 0:02:02]} 26. Rxa7 {[%clk 0:00:44]}  Nc5 {[%clk 0:02:00]} 27. Nd2 {[%clk 0:00:19]}  Nd3+ {[%clk 0:01:54]} 28. Ke2 {[%clk 0:00:19]}  Nxf2 {[%clk 0:01:50]} 29. Kxf2 {[%clk 0:00:20]}  Rxd2+ {[%clk 0:01:51]} 30. Kf3 {[%clk 0:00:20]}  e5 {[%clk 0:01:48]} 31. Rb7 {[%clk 0:00:18]}  Rb2 {[%clk 0:01:47]} 32. a4 {[%clk 0:00:18]}  Rb4 {[%clk 0:01:46]} 33. g4 {[%clk 0:00:15]}  h6 {[%clk 0:01:42]} 34. g3 {[%clk 0:00:14]}  Kh7 {[%clk 0:01:38]} 35. Rb8 {[%clk 0:00:08]}  Kg6 {[%clk 0:01:35]} 36. Rb7 {[%clk 0:00:09]}  e4+ {[%clk 0:01:27]} 37. Kf4 {[%clk 0:00:09]}  Rxa4 {[%clk 0:01:17]} 38. Rxb6 {[%clk 0:00:08]}  Kh7 {[%clk 0:01:12]} 39. Re6 {[%clk 0:00:08]}  Kg6 {[%clk 0:01:05]} 40. Rxe4 {[%clk 0:00:07]}  Rxe4+ {[%clk 0:01:05]} 41. Kxe4 {[%clk 0:00:07]}  Kg5 {[%clk 0:01:06]} 42. Kf3 {[%clk 0:00:08]}  g6 {[%clk 0:01:03]} 43. e4 {[%clk 0:00:08]}  h5 {[%clk 0:01:01]} 44. gxh5 {[%clk 0:00:07]}  Kxh5 {[%clk 0:00:59]} 45. Kf4 {[%clk 0:00:07]}  Kh6 {[%clk 0:00:54]} 46. g4 {[%clk 0:00:07]}  Kg7 {[%clk 0:00:50]} 47. g5 {[%clk 0:00:07]}  Kf7 {[%clk 0:00:47]} 48. gxf6 {[%clk 0:00:07]}  Kxf6 {[%clk 0:00:48]} 49. e5+ {[%clk 0:00:06]}  Ke6 {[%clk 0:00:48]} 50. Kg5 {[%clk 0:00:07]}  Kf7 {[%clk 0:00:47]} 51. e6+ {[%clk 0:00:07]}  Kxe6 {[%clk 0:00:47]} 52. Kxg6 {[%clk 0:00:07]} 1/2-1/2


[Site "https://www.chess.com"]

[Event "Titled Tuesday Blitz June 21 Early 2022"]
[White "Daeschler, Florian"]
[Black "Lorne, Ras Malaku"]
[WhiteFideId "20678193"]
[BlackFideId "7400330"]
[WhiteElo "2221"]
[BlackElo "2199"]
[Result "1-0"]
[Round "04"]
[TimeControl "180+1"]
[Date "2022.06.21"]
[WhiteClock "0:00:20"]
[BlackClock "0:00:12"]

1. Nf3 {[%clk 0:03:00]}  c5 {[%clk 0:02:58]} 2. e4 {[%clk 0:02:59]}  d6 {[%clk 0:02:57]} 3. Bb5+ {[%clk 0:03:00]}  Bd7 {[%clk 0:02:52]} 4. Bxd7+ {[%clk 0:03:00]}  Qxd7 {[%clk 0:02:53]} 5. O-O {[%clk 0:03:00]}  Nc6 {[%clk 0:02:52]} 6. c3 {[%clk 0:03:01]}  Nf6 {[%clk 0:02:52]} 7. d4 {[%clk 0:03:02]}  cxd4 {[%clk 0:02:49]} 8. cxd4 {[%clk 0:03:03]}  Nxe4 {[%clk 0:02:46]} 9. d5 {[%clk 0:03:01]}  Nb8 {[%clk 0:02:43]} 10. Re1 {[%clk 0:03:01]}  Nf6 {[%clk 0:02:41]} 11. Bg5 {[%clk 0:03:01]}  Ng8 {[%clk 0:02:28]} 12. Nc3 {[%clk 0:03:00]}  h6 {[%clk 0:02:26]} 13. Bh4 {[%clk 0:02:59]}  g5 {[%clk 0:02:25]} 14. Bg3 {[%clk 0:03:00]}  Bg7 {[%clk 0:02:24]} 15. Ne4 {[%clk 0:02:57]}  Kf8 {[%clk 0:02:24]} 16. Rc1 {[%clk 0:02:29]}  Na6 {[%clk 0:02:23]} 17. Nd4 {[%clk 0:02:22]}  Nf6 {[%clk 0:02:14]} 18. Nc3 {[%clk 0:02:20]}  Ne8 {[%clk 0:01:50]} 19. a3 {[%clk 0:02:18]}  Bf6 {[%clk 0:01:45]} 20. b4 {[%clk 0:02:09]}  Kg7 {[%clk 0:01:41]} 21. Qd3 {[%clk 0:02:09]}  Bxd4 {[%clk 0:01:31]} 22. Qxd4+ {[%clk 0:02:09]}  Nf6 {[%clk 0:01:31]} 23. Ne4 {[%clk 0:01:56]}  b6 {[%clk 0:01:18]} 24. Nxf6 {[%clk 0:01:52]}  exf6 {[%clk 0:01:18]} 25. Rc6 {[%clk 0:01:53]}  Rhe8 {[%clk 0:01:11]} 26. Rf1 {[%clk 0:01:46]}  Re5 {[%clk 0:00:56]} 27. f4 {[%clk 0:01:36]}  Rf5 {[%clk 0:00:40]} 28. fxg5 {[%clk 0:01:33]}  hxg5 {[%clk 0:00:41]} 29. Re1 {[%clk 0:01:15]}  Re8 {[%clk 0:00:30]} 30. Rxe8 {[%clk 0:01:09]}  Qxe8 {[%clk 0:00:31]} 31. h3 {[%clk 0:01:01]}  Nc7 {[%clk 0:00:26]} 32. Rxc7 {[%clk 0:00:57]}  Qa4 {[%clk 0:00:19]} 33. Bxd6 {[%clk 0:00:47]}  Qxa3 {[%clk 0:00:17]} 34. Kh2 {[%clk 0:00:38]}  Qb3 {[%clk 0:00:15]} 35. Bg3 {[%clk 0:00:29]}  Rxd5 {[%clk 0:00:14]} 36. Qc4 {[%clk 0:00:25]}  Qd1 {[%clk 0:00:12]} 37. Rxa7 {[%clk 0:00:21]}  b5 {[%clk 0:00:12]} 38. Qc7 {[%clk 0:00:20]}  Kg6 {[%clk 0:00:12]} 39. Qxf7+ {[%clk 0:00:20]}  Kf5 {[%clk 0:00:13]} 40. Qh7+ {[%clk 0:00:20]}  Ke6 {[%clk 0:00:12]} 41. Re7# {[%clk 0:00:20]} 1-0


[Site "https://www.chess.com"]